Workbook

Sheet U18 weiblich
C1: Starter u.Ergebnisliste | F1: Altersklasse : | J1: U18 weiblich
B2: Hessischer Kegler u.Bowling Verband e.V. Sektion : Classic | Q2: Bezirk 3
A4: Bezirksmeisterschaft Einzel 2017
B8: Spielorte : | E8: Samstag: Mörfelden | J8: Datum : | L8: 11./12.03.2017
E9: Sonntag: F-Bockenheim
G10: Vorlauf | K10: Endlauf | O10: Gesamt
A11: Platz | B11: Geb.Dat. | C11: Verband | D11: Pass Nr. | E11: Name, Vorname | F11: Verein | G11: Volle | H11: Abr. | I11: Fw | J11: Gesamt | K11: Volle | L11: Abr. | M11: Fw | N11: Gesamt | O11: Volle | P11: Abr. | Q11: Fw | R11: Gesamt
A12: 1 | B12: 2001-08-28 | C12: DCU | D12: 10B1207 | E12: Thies, Tabea | F12: TSV Ginnheim | G12: 318 | H12: 134 | I12: 8 | J12: =SUM(G12+H12) -> 452 | K12: 309 | L12: 132 | M12: 6 | N12: =SUM(K12+L12) -> 441 | O12: =SUM(G12+K12) -> 627 | P12: =SUM(H12+L12) -> 266 | Q12: =SUM(I12+M12) -> 14 | R12: =SUM(O12+P12) -> 893
A13: 2 | B13: 1998-10-01 | C13: DCU | D13: 10A7470 | E13: Wenzel, Laura | F13: KV Riederwald | G13: 282 | H13: 152 | I13: 4 | J13: 434 | K13: 285 | L13: 156 | M13: 2 | N13: 441 | O13: 567 | P13: 308 | Q13: 6 | R13: 875
A14: 3 | B14: 02.99 | C14: DCU | D14: 10A7482 | E14: Agricola, Sophie | F14: VWSK Wiesbaden | G14: 291 | H14: 134 | I14: 4 | J14: 425 | K14: 283 | L14: 143 | M14: 2 | N14: 426 | O14: 574 | P14: 277 | Q14: 6 | R14: 851
A15: 4 | B15: 2001-09-29 | C15: DCU | D15: 10A6689 | E15: Becker, Laureen | F15: SKV Mörfelden | G15: 291 | H15: 124 | I15: 7 | J15: 415 | K15: 298 | L15: 132 | M15: 6 | N15: 430 | O15: 589 | P15: 256 | Q15: 13 | R15: 845
A16: 5 | B16: 01.99 | C16: DCU | D16: 10A7479 | E16: Dressler, Janina | F16: SKV Mörfelden | G16: 281 | H16: 142 | I16: 7 | J16: 423 | K16: 269 | L16: 151 | M16: 1 | N16: 420 | O16: 550 | P16: 293 | Q16: 8 | R16: 843
A17: 6 | B17: 2000-09-01 | C17: DCU | D17: 10A9165 | E17: Westenburger, Bianca | F17: KV Riederwald | G17: 277 | H17: 113 | I17: 14 | J17: 390 | K17: 267 | L17: 148 | M17: 4 | N17: 415 | O17: 544 | P17: 261 | Q17: 18 | R17: 805
A18: 7 | B18: 2000-09-01 | C18: DCU | D18: 10A9164 | E18: Westenburger, Vanessa | F18: KV Riederwald | G18: 273 | H18: 115 | I18: 9 | J18: 388 | K18: 289 | L18: 121 | M18: 9 | N18: 410 | O18: 562 | P18: 236 | Q18: 18 | R18: 798
A19: 8 | B19: 2001-04-01 | C19: DCU | D19: 10A5871 | E19: Spahn, Louisa | F19: RW Walldorf | G19: 278 | H19: 120 | I19: 7 | J19: 398 | K19: 267 | L19: 123 | M19: 12 | N19: 390 | O19: 545 | P19: 243 | Q19: 19 | R19: 788
A20: 9 | B20: 1999-12-01 | C20: DCU | D20: 10A9461 | E20: Miklausic, Anna-Maria | F20: KV Riederwald | G20: 289 | H20: 122 | I20: 8 | J20: 411 | K20: 0 | L20: 0 | M20: 0 | N20: 0 | O20: 289 | P20: 122 | Q20: 8 | R20: 411
A21: 10 | J21: =SUM(G21+H21) -> 0 | N21: =SUM(K21+L21) -> 0 | O21: =SUM(G21+K21) -> 0 | P21: =SUM(H21+L21) -> 0 | Q21: =SUM(I21+M21) -> 0 | R21: =SUM(O21+P21) -> 0
A22: 11 | J22: =SUM(G22+H22) -> 0 | N22: =SUM(K22+L22) -> 0 | O22: =SUM(G22+K22) -> 0 | P22: =SUM(H22+L22) -> 0 | Q22: =SUM(I22+M22) -> 0 | R22: =SUM(O22+P22) -> 0
A23: 12 | J23: 0 | N23: 0 | O23: 0 | P23: 0 | Q23: 0 | R23: 0
A24: 13 | J24: 0 | N24: 0 | O24: 0 | P24: 0 | Q24: 0 | R24: 0
A25: 14 | J25: 0 | N25: 0 | O25: 0 | P25: 0 | Q25: 0 | R25: 0
A26: 15 | J26: 0 | N26: 0 | O26: 0 | P26: 0 | Q26: 0 | R26: 0
A27: 16 | J27: 0 | N27: 0 | O27: 0 | P27: 0 | Q27: 0 | R27: 0
A28: 17 | J28: 0 | N28: 0 | O28: 0 | P28: 0 | Q28: 0 | R28: 0
A29: 18 | J29: 0 | N29: 0 | O29: 0 | P29: 0 | Q29: 0 | R29: 0
A30: 19 | J30: 0 | N30: 0 | O30: 0 | P30: 0 | Q30: 0 | R30: 0
A31: 20 | J31: 0 | N31: 0 | O31: 0 | P31: 0 | Q31: 0 | R31: 0
A32: 21 | J32: 0 | N32: 0 | O32: 0 | P32: 0 | Q32: 0 | R32: 0
A33: 22 | J33: 0 | N33: 0 | O33: 0 | P33: 0 | Q33: 0 | R33: 0
A34: 23 | J34: 0 | N34: 0 | O34: 0 | P34: 0 | Q34: 0 | R34: 0

Sheet U18_maennlich
C1: Starter u.Ergebnisliste | F1: Altersklasse : | J1: U18 männlich
B2: Hessischer Kegler u.Bowling Verband e.V. Sektion : Classic | Q2: Bezirk 3
A4: Bezirksmeisterschaft Einzel 2017
B8: Spielorte : | E8: Samstag: Mörfelden | J8: Datum : | L8: 11./12.03.2017
E9: Sonntag: F-Bockenheim
G10: Vorlauf | K10: Endlauf | O10: Gesamt
A11: Platz | B11: Geb.Dat. | C11: Verband | D11: Pass Nr. | E11: Name, Vorname | F11: Verein | G11: Volle | H11: Abr. | I11: Fw | J11: Gesamt | K11: Volle | L11: Abr. | M11: Fw | N11: Gesamt | O11: Volle | P11: Abr. | Q11: Fw | R11: Gesamt
A12: 1 | B12: 2001-02-01 | C12: DCU | D12: 10B1441 | E12: Jammer, Niels | F12: FTV Frankfurt | G12: 302 | H12: 132 | I12: 6 | J12: =SUM(G12+H12) -> 434 | K12: 325 | L12: 132 | M12: 5 | N12: =SUM(K12+L12) -> 457 | O12: =SUM(G12+K12) -> 627 | P12: =SUM(H12+L12) -> 264 | Q12: =SUM(I12+M12) -> 11 | R12: =SUM(O12+P12) -> 891
A13: 2 | B13: 09.98 | C13: DCU | D13: 10A4825 | E13: Vonhof, Daniel | F13: SKV Mörfelden | G13: 320 | H13: 160 | I13: 5 | J13: 480 | K13: 282 | L13: 117 | M13: 9 | N13: 399 | O13: 602 | P13: 277 | Q13: 14 | R13: 879
A14: 3 | B14: 06.00 | C14: DCU | D14: 10A8317 | E14: Macion, Benedikt | F14: KBV Kelsterbach | G14: 296 | H14: 131 | I14: 3 | J14: 427 | K14: 300 | L14: 135 | M14: 3 | N14: 435 | O14: 596 | P14: 266 | Q14: 6 | R14: 862
A15: 4 | B15: 07.99 | C15: DCU | D15: 10A7464 | E15: Astheimer, Dominik | F15: BL Bischofsheim | G15: 315 | H15: 114 | I15: 6 | J15: 429 | K15: 276 | L15: 133 | M15: 5 | N15: 409 | O15: 591 | P15: 247 | Q15: 11 | R15: 838
A16: 5 | B16: 2002-06-18 | C16: DCU | D16: 10B2018 | E16: Brauer, Lukas-Dirk | F16: KBV Kelsterbach | G16: 290 | H16: 130 | I16: 6 | J16: 420 | K16: 284 | L16: 128 | M16: 10 | N16: 412 | O16: 574 | P16: 258 | Q16: 16 | R16: 832
A17: 6 | B17: 2001-08-01 | C17: DCU | D17: 10B1176 | E17: Witt, Pascal | F17: TSV Ginnheim | G17: 293 | H17: 138 | I17: 10 | J17: 431 | K17: 266 | L17: 118 | M17: 7 | N17: 384 | O17: 559 | P17: 256 | Q17: 17 | R17: 815
A18: 7 | B18: 1999-10-01 | C18: DCU | D18: 10A8318 | E18: Jordan, Dominik | F18: KBV Kelsterbach | G18: 290 | H18: 112 | I18: 12 | J18: 402 | K18: 279 | L18: 126 | M18: 8 | N18: 405 | O18: 569 | P18: 238 | Q18: 20 | R18: 807
A19: 8 | B19: 2001-12-06 | C19: DCU | D19: 10A7460 | E19: Port, Oliver | F19: TuS Rüsselsheim | G19: 263 | H19: 150 | I19: 7 | J19: 413 | K19: 275 | L19: 107 | M19: 11 | N19: 382 | O19: 538 | P19: 257 | Q19: 18 | R19: 795
A20: 9 | B20: 2001-05-01 | C20: DCU | D20: 10B1177 | E20: Orfali, Luis | F20: TSV Ginnheim | G20: 280 | H20: 144 | I20: 7 | J20: 424 | K20: 267 | L20: 94 | M20: 13 | N20: 361 | O20: 547 | P20: 238 | Q20: 20 | R20: 785
A21: 10 | B21: 2002-02-27 | C21: DCU | D21: 10B1108 | E21: Andreadis, Elias | F21: TuS Rüsselsheim | G21: 272 | H21: 103 | I21: 12 | J21: 375 | K21: 258 | L21: 78 | M21: 16 | N21: 336 | O21: 530 | P21: 181 | Q21: 28 | R21: 711
A22: 11 | B22: 2001-09-26 | C22: DCU | E22: Bauer, Benjamin | F22: TuS Rüsselsheim | J22: 0 | N22: 0 | O22: 0 | P22: 0 | Q22: 0 | R22: 0
A23: 12 | J23: =SUM(G23+H23) -> 0 | N23: =SUM(K23+L23) -> 0 | O23: =SUM(G23+K23) -> 0 | P23: =SUM(H23+L23) -> 0 | Q23: =SUM(I23+M23) -> 0 | R23: =SUM(O23+P23) -> 0
A24: 13 | J24: 0 | N24: 0 | O24: 0 | P24: 0 | Q24: 0 | R24: 0
A25: 14 | J25: =SUM(G25+H25) -> 0 | N25: =SUM(K25+L25) -> 0 | O25: =SUM(G25+K25) -> 0 | P25: 0 | Q25: 0 | R25: =SUM(O25+P25) -> 0
A26: 15 | J26: 0 | N26: 0 | O26: 0 | P26: 0 | Q26: 0 | R26: 0
A27: 16 | J27: 0 | N27: 0 | O27: 0 | P27: 0 | Q27: 0 | R27: 0
A28: 17 | J28: 0 | N28: 0 | O28: 0 | P28: 0 | Q28: 0 | R28: 0
A29: 18 | J29: 0 | N29: 0 | O29: 0 | P29: 0 | Q29: 0 | R29: 0
A30: 19 | J30: 0 | N30: 0 | O30: 0 | P30: 0 | Q30: 0 | R30: 0
A31: 20 | J31: 0 | N31: 0 | O31: 0 | P31: 0 | Q31: 0 | R31: 0
A32: 21 | J32: 0 | N32: 0 | O32: 0 | P32: 0 | Q32: 0 | R32: 0
A33: 22 | J33: 0 | N33: 0 | O33: 0 | P33: 0 | Q33: 0 | R33: 0
A34: 23 | J34: 0 | N34: 0 | O34: 0 | P34: 0 | Q34: 0 | R34: 0

Sheet U14 weiblich
C1: Starter u.Ergebnisliste | F1: Altersklasse : | J1: U14 weiblich
B2: Hessischer Kegler u.Bowling Verband e.V. Sektion : Classic | Q2: Bezirk 3
A4: Bezirksmeisterschaft Einzel 2017
B8: Spielorte : | E8: Samstag: Mörfelden | J8: Datum : | L8: 11./12.03.2017
E9: Sonntag: F-Bockenheim
G10: Vorlauf | K10: Endlauf | O10: Gesamt
A11: Platz | B11: Geb.Dat. | C11: Verband | D11: Pass Nr. | E11: Name, Vorname | F11: Verein | G11: Volle | H11: Abr. | I11: Fw | J11: Gesamt | K11: Volle | L11: Abr. | M11: Fw | N11: Gesamt | O11: Volle | P11: Abr. | Q11: Fw | R11: Gesamt
A12: 1 | B12: 2002-11-01 | C12: DCU | D12: 10A7481 | E12: Agricola, Tizia | F12: VWSK Wiesbaden | G12: 287 | H12: 133 | I12: 7 | J12: =SUM(G12+H12) -> 420 | K12: 279 | L12: 105 | M12: 11 | N12: =SUM(K12+L12) -> 384 | O12: =SUM(G12+K12) -> 566 | P12: 238 | Q12: 18 | R12: =SUM(O12+P12) -> 804
A13: 2 | B13: 11.04 | C13: DCU | D13: 10B2019 | E13: Akstejn, Julia | F13: KBV Kelsterbach | G13: 256 | H13: 111 | I13: 15 | J13: =SUM(G13+H13) -> 367 | K13: 278 | L13: 91 | M13: 13 | N13: =SUM(K13+L13) -> 369 | O13: 534 | P13: 202 | Q13: 28 | R13: =SUM(O13+P13) -> 736
A14: 3 | B14: 2004-03-22 | C14: DCU | D14: 10A9298 | E14: Geiß, Michelle | F14: SKV Mörfelden | G14: 259 | H14: 96 | I14: 16 | J14: =SUM(G14+H14) -> 355 | K14: 255 | L14: 106 | M14: 13 | N14: =SUM(K14+L14) -> 361 | O14: 514 | P14: 202 | Q14: 29 | R14: =SUM(O14+P14) -> 716
A15: 4 | B15: 2003-03-05 | C15: DCU | D15: 10B2712 | E15: Urban, Vivian | F15: KSC Bockenheim | G15: 226 | H15: 88 | I15: 21 | J15: =SUM(G15+H15) -> 314 | K15: 193 | L15: 69 | M15: 23 | N15: =SUM(K15+L15) -> 262 | O15: 419 | P15: 157 | Q15: 44 | R15: =SUM(O15+P15) -> 576
A16: 5 | B16: 02.06 | C16: DCU | D16: 10B1250 | E16: Adams, Alexia | F16: KBV Kelsterbach | G16: 211 | H16: 68 | I16: 21 | J16: =SUM(G16+H16) -> 279 | K16: 213 | L16: 78 | M16: 19 | N16: =SUM(K16+L16) -> 291 | O16: 424 | P16: 146 | Q16: 40 | R16: =SUM(O16+P16) -> 570
A17: 6 | J17: =SUM(G17+H17) -> 0 | N17: =SUM(K17+L17) -> 0 | O17: =SUM(G17+K17) -> 0 | P17: 0 | Q17: 0 | R17: =SUM(O17+P17) -> 0
A18: 7 | J18: =SUM(G18+H18) -> 0 | N18: =SUM(K18+L18) -> 0 | O18: =SUM(G18+K18) -> 0 | P18: 0 | Q18: 0 | R18: =SUM(O18+P18) -> 0
A19: 8 | J19: 0 | N19: 0 | O19: 0 | P19: 0 | Q19: 0 | R19: 0
A20: 9 | J20: 0 | N20: 0 | O20: 0 | P20: 0 | Q20: 0 | R20: 0
A21: 10 | J21: 0 | N21: 0 | O21: 0 | P21: 0 | Q21: 0 | R21: 0
A22: 11 | J22: 0 | N22: 0 | O22: 0 | P22: 0 | Q22: 0 | R22: 0
A23: 12 | J23: 0 | N23: 0 | O23: 0 | P23: 0 | Q23: 0 | R23: 0
A24: 13 | J24: 0 | N24: 0 | O24: 0 | P24: 0 | Q24: 0 | R24: 0
A25: 14 | J25: 0 | N25: 0 | O25: 0 | P25: 0 | Q25: 0 | R25: 0
A26: 15 | J26: 0 | N26: 0 | O26: 0 | P26: 0 | Q26: 0 | R26: 0
A27: 16 | J27: 0 | N27: 0 | O27: 0 | P27: 0 | Q27: 0 | R27: 0
A28: 17 | J28: 0 | N28: 0 | O28: 0 | P28: 0 | Q28: 0 | R28: 0
A29: 18 | J29: 0 | N29: 0 | O29: 0 | P29: 0 | Q29: 0 | R29: 0
A30: 19 | J30: 0 | N30: 0 | O30: 0 | P30: 0 | Q30: 0 | R30: 0
A31: 20 | J31: 0 | N31: 0 | O31: 0 | P31: 0 | Q31: 0 | R31: 0
A32: 21 | J32: 0 | N32: 0 | O32: 0 | P32: 0 | Q32: 0 | R32: 0
A33: 22 | J33: 0 | N33: 0 | O33: 0 | P33: 0 | Q33: 0 | R33: 0
A34: 23 | J34: 0 | N34: 0 | O34: 0 | P34: 0 | Q34: 0 | R34: 0

Sheet U14 maennlich
C1: Starter u.Ergebnisliste | F1: Altersklasse : | J1: U14 männlich
B2: Hessischer Kegler u.Bowling Verband e.V. Sektion : Classic | Q2: Bezirk 3
A4: Bezirksmeisterschaft Einzel 2017
B8: Spielorte : | E8: Samstag: Mörfelden | J8: Datum : | L8: 11./12.03.2017
E9: Sonntag: F-Bockenheim
G10: Vorlauf | K10: Endlauf | O10: Gesamt
A11: Platz | B11: Geb.Dat. | C11: Verband | D11: Pass Nr. | E11: Name, Vorname | F11: Verein | G11: Volle | H11: Abr. | I11: Fw | J11: Gesamt | K11: Volle | L11: Abr. | M11: Fw | N11: Gesamt | O11: Volle | P11: Abr. | Q11: Fw | R11: Gesamt
A12: 1 | B12: 2004-11-15 | C12: DCU | D12: 10A6691 | E12: Williamson, Justin | F12: SKV Mörfelden | G12: 301 | H12: 141 | I12: 6 | J12: =SUM(G12+H12) -> 442 | K12: 296 | L12: 123 | M12: 8 | N12: =SUM(K12+L12) -> 419 | O12: =SUM(G12+K12) -> 597 | P12: =SUM(H12+L12) -> 264 | Q12: =SUM(I12+M12) -> 14 | R12: =SUM(O12+P12) -> 861
A13: 2 | B13: 2003-06-22 | C13: DCU | D13: 10A6697 | E13: Michel, Tim | F13: SKV Mörfelden | G13: 282 | H13: 118 | I13: 6 | J13: 400 | K13: 291 | L13: 122 | M13: 7 | N13: 413 | O13: 573 | P13: 240 | Q13: 13 | R13: 813
A14: 3 | B14: 11.02 | C14: DCU | D14: 10A8314 | E14: Greiner, Philipp | F14: KBV Kelsterbach | G14: 298 | H14: 117 | I14: 11 | J14: 415 | K14: 290 | L14: 107 | M14: 12 | N14: 397 | O14: 588 | P14: 224 | Q14: 23 | R14: 812
A15: 4 | B15: 01/04 | C15: DKBC | D15: D106867 | E15: Matic, Christopher | F15: KV Praunheim | G15: 276 | H15: 134 | I15: 9 | J15: 410 | K15: 275 | L15: 90 | M15: 9 | N15: 365 | O15: 551 | P15: 224 | Q15: 18 | R15: 775
A16: 5 | B16: 02.05 | C16: DCU | D16: 10A8541 | E16: Agricola, Darius | F16: VWSK Wiesbaden | G16: 257 | H16: 147 | I16: 7 | J16: 404 | K16: 272 | L16: 97 | M16: 12 | N16: 369 | O16: 529 | P16: 244 | Q16: 19 | R16: 773
A17: 6 | B17: 12.02 | C17: DCU | D17: 10A7466 | E17: Heyer, Tim | F17: VWSK Wiesbaden | G17: 273 | H17: 104 | I17: 14 | J17: 377 | K17: 273 | L17: 116 | M17: 9 | N17: 389 | O17: 546 | P17: 220 | Q17: 23 | R17: 766
A18: 7 | B18: 12/03 | C18: DCU | D18: 10A9457 | E18: Groneberg, Philipp | F18: FTV Frankfurt | G18: 269 | H18: 113 | I18: 8 | J18: 382 | K18: 277 | L18: 98 | M18: 15 | N18: 375 | O18: 546 | P18: 211 | Q18: 23 | R18: 757
A19: 8 | B19: 2006-09-01 | C19: DCU | D19: 10B2741 | E19: Nuhn, Felix | F19: VWSK Wiesbaden | G19: 236 | H19: 102 | I19: 15 | J19: 338 | K19: 271 | L19: 102 | M19: 13 | N19: 373 | O19: 507 | P19: 204 | Q19: 28 | R19: 711
A20: 9 | B20: 04/04 | C20: DKBC | D20: D135921 | E20: Schmitt, Tom-Erik | F20: KV Praunheim | G20: 270 | H20: 97 | I20: 16 | J20: 367 | K20: 244 | L20: 97 | M20: 15 | N20: 341 | O20: 514 | P20: 194 | Q20: 31 | R20: 708
A21: 10 | B21: 09/06 | C21: DKBC | D21: DCU? | E21: Matic, Dominic | F21: KV Praunheim | G21: 266 | H21: 103 | I21: 10 | J21: 369 | K21: 258 | L21: 75 | M21: 17 | N21: 333 | O21: 524 | P21: 178 | Q21: 27 | R21: 702
A22: 11 | B22: 12/04 | C22: DCU | D22: 10B2340 | E22: Schreiber, Thomas | F22: SG Bockenheim | G22: 231 | H22: 84 | I22: 16 | J22: 315 | K22: 251 | L22: 92 | M22: 13 | N22: 343 | O22: 482 | P22: 176 | Q22: 29 | R22: 658
A23: 12 | B23: 02.04 | C23: DCU | D23: 10B1654 | E23: Walther, Noah | F23: SKV Mörfelden | G23: 222 | H23: 66 | I23: 23 | J23: 288 | K23: 206 | L23: 82 | M23: 21 | N23: 288 | O23: 428 | P23: 148 | Q23: 44 | R23: 576
A24: 13 | B24: 2017-04-04 | C24: DKBC | D24: D135924 | E24: Piehler, Constantin | F24: KV Praunheim | G24: 199 | H24: 70 | I24: 27 | J24: 269 | K24: 217 | L24: 87 | M24: 16 | N24: 304 | O24: 416 | P24: 157 | Q24: 43 | R24: 573
A25: 14 | B25: 01.07 | C25: DCU | D25: 10A8313 | E25: Greiner, Niklas | F25: KBV Kelsterbach | G25: 228 | H25: 51 | I25: 31 | J25: 279 | K25: 200 | L25: 88 | M25: 21 | N25: 288 | O25: 428 | P25: 139 | Q25: 52 | R25: 567
A26: 15 | B26: 08.03 | C26: DCU | D26: 10A7467 | E26: Kraus, Jonas | F26: VWSK Wiesbaden | J26: 0 | N26: 0 | O26: 0 | P26: 0 | Q26: 0 | R26: 0
A27: 16 | B27: 10.04 | C27: DCU | D27: 10A9296 | E27: Stambuk, Julian | F27: VWSK Wiesbaden | J27: 0 | N27: 0 | O27: 0 | P27: 0 | Q27: 0 | R27: 0
A28: 17 | J28: =SUM(G28+H28) -> 0 | N28: =SUM(K28+L28) -> 0 | O28: =SUM(G28+K28) -> 0 | P28: =SUM(H28+L28) -> 0 | Q28: =SUM(I28+M28) -> 0 | R28: =SUM(O28+P28) -> 0
A29: 18 | J29: 0 | N29: 0 | O29: 0 | P29: 0 | Q29: 0 | R29: 0
A30: 19 | J30: =SUM(G30+H30) -> 0 | N30: =SUM(K30+L30) -> 0 | O30: =SUM(G30+K30) -> 0 | P30: 0 | Q30: 0 | R30: =SUM(O30+P30) -> 0
A31: 20 | J31: 0 | N31: 0 | O31: 0 | P31: 0 | Q31: 0 | R31: 0
A32: 21 | J32: 0 | N32: 0 | O32: 0 | P32: 0 | Q32: 0 | R32: 0
A33: 22 | J33: 0 | N33: 0 | O33: 0 | P33: 0 | Q33: 0 | R33: 0
A34: 23 | J34: 0 | N34: 0 | O34: 0 | P34: 0 | Q34: 0 | R34: 0

Sheet U10 weiblich
C1: Starter u.Ergebnisliste | F1: Altersklasse : | J1: U10 weiblich
B2: Hessischer Kegler u.Bowling Verband e.V. Sektion : Classic | Q2: Bezirk 3
A4: Bezirksmeisterschaft Einzel 2017
B8: Spielorte : | E8: Samstag: Mörfelden | J8: Datum : | L8: 11./12.03.2017
E9: Sonntag: F-Bockenheim
G10: Vorlauf | K10: Endlauf | O10: Gesamt
A11: Platz | B11: Geb.Dat. | C11: Verband | D11: Pass Nr. | E11: Name, Vorname | F11: Verein | G11: Bahn 1 | H11: Bahn 2 | I11: Fw | J11: Gesamt | K11: Bahn 1 | L11: Bahn 2 | M11: Fw | N11: Gesamt | O11: Vorl. | P11: Endl. | Q11: Fw | R11: Gesamt
A12: 1 | B12: 04.08 | C12: DCU | E12: Emmerich, Emilia | F12: SKV Mörfelden | G12: 163 | H12: 152 | I12: 21 | J12: =SUM(G12+H12) -> 315 | K12: 146 | L12: 147 | M12: 27 | N12: =SUM(K12+L12) -> 293 | O12: =(J12) -> 315 | P12: =(N12) -> 293 | Q12: =SUM(I12+M12) -> 48 | R12: =SUM(O12+P12) -> 608
A13: 2 | J13: 0 | N13: 0 | O13: 0 | P13: 0 | Q13: 0 | R13: 0
A14: 3 | J14: 0 | N14: 0 | O14: 0 | P14: 0 | Q14: 0 | R14: 0
A15: 4 | J15: 0 | N15: 0 | O15: 0 | P15: 0 | Q15: 0 | R15: 0
A16: 5 | J16: 0 | N16: 0 | O16: 0 | P16: 0 | Q16: 0 | R16: 0
A17: 6 | J17: 0 | N17: 0 | O17: 0 | P17: 0 | Q17: 0 | R17: 0
A18: 7 | J18: 0 | N18: 0 | O18: 0 | P18: 0 | Q18: 0 | R18: 0
A19: 8 | J19: 0 | N19: 0 | O19: 0 | P19: 0 | Q19: 0 | R19: 0
A20: 9 | J20: 0 | N20: 0 | O20: 0 | P20: 0 | Q20: 0 | R20: 0
A21: 10 | J21: 0 | N21: 0 | O21: 0 | P21: 0 | Q21: 0 | R21: 0
A22: 11 | J22: 0 | N22: 0 | O22: 0 | P22: 0 | Q22: 0 | R22: 0
A23: 12 | J23: 0 | N23: 0 | O23: 0 | P23: 0 | Q23: 0 | R23: 0
A24: 13 | J24: 0 | N24: 0 | O24: 0 | P24: 0 | Q24: 0 | R24: 0
A25: 14 | J25: 0 | N25: 0 | O25: 0 | P25: 0 | Q25: 0 | R25: 0
A26: 15 | J26: 0 | N26: 0 | O26: 0 | P26: 0 | Q26: 0 | R26: 0
A27: 16 | J27: 0 | N27: 0 | O27: 0 | P27: 0 | Q27: 0 | R27: 0
A28: 17 | J28: 0 | N28: 0 | O28: 0 | P28: 0 | Q28: 0 | R28: 0
A29: 18 | J29: 0 | N29: 0 | O29: 0 | P29: 0 | Q29: 0 | R29: 0
A30: 19 | J30: 0 | N30: 0 | O30: 0 | P30: 0 | Q30: 0 | R30: 0
A31: 20 | J31: 0 | N31: 0 | O31: 0 | P31: 0 | Q31: 0 | R31: 0

Sheet U10 maennlich
C1: Starter u.Ergebnisliste | F1: Altersklasse : | J1: U10 männlich
B2: Hessischer Kegler u.Bowling Verband e.V. Sektion : Classic | Q2: Bezirk 3
A4: Bezirksmeisterschaft Einzel 2017
B8: Spielorte : | E8: Samstag: Mörfelden | J8: Datum : | L8: 11./12.03.2017
E9: Sonntag: F-Bockenheim
G10: Vorlauf | K10: Endlauf | O10: Gesamt
A11: Platz | B11: Geb.Dat. | C11: Verband | D11: Pass Nr. | E11: Name, Vorname | F11: Verein | G11: Bahn 1 | H11: Bahn 2 | I11: Fw | J11: Gesamt | K11: Bahn 1 | L11: Bahn 2 | M11: Fw | N11: Gesamt | O11: Vorl. | P11: Endl. | Q11: Fw | R11: Gesamt
A12: 1 | B12: 09/08 | C12: DCU | E12: Schmitt, Robin | F12: SKV Mörfelden | G12: 227 | H12: 208 | I12: 0 | J12: =SUM(G12+H12) -> 435 | K12: 199 | L12: 207 | M12: 6 | N12: =SUM(K12+L12) -> 406 | O12: =(J12) -> 435 | P12: =(N12) -> 406 | Q12: =SUM(I12+M12) -> 6 | R12: =SUM(O12+P12) -> 841
A13: 2 | B13: 08/07 | C13: DCU | E13: Liebold, Harmen | F13: SKV Mörfelden | G13: 197 | H13: 212 | I13: 3 | J13: 409 | K13: 199 | L13: 207 | M13: 8 | N13: 406 | O13: 409 | P13: 406 | Q13: 11 | R13: 815
A14: 3 | B14: 11/08 | C14: DCU | E14: Kraft, Finn | F14: SKV Mörfelden | G14: 181 | H14: 182 | I14: 10 | J14: 363 | K14: 202 | L14: 196 | M14: 5 | N14: 398 | O14: 363 | P14: 398 | Q14: 15 | R14: 761
A15: 4 | B15: 07/08 | C15: DCU | E15: Lorenz, Jan | F15: SKV Mörfelden | G15: 183 | H15: 166 | I15: 8 | J15: 349 | K15: 191 | L15: 208 | M15: 7 | N15: 399 | O15: 349 | P15: 399 | Q15: 15 | R15: 748
A16: 5 | B16: 11/07 | C16: DCU | E16: Henrik, Jan | F16: VWSK Wiesbaden | G16: 174 | H16: 159 | I16: 18 | J16: 333 | K16: 203 | L16: 191 | M16: 11 | N16: 394 | O16: 333 | P16: 394 | Q16: 29 | R16: 727
A17: 6 | B17: 06/08 | C17: DKBC | E17: Schmitt, Mika | F17: KV Praunheim | G17: 162 | H17: 161 | I17: 14 | J17: 323 | K17: 170 | L17: 162 | M17: 16 | N17: 332 | O17: 323 | P17: 332 | Q17: 30 | R17: 655
A18: 7 | B18: 12/08 | C18: DCU | E18: Geiss, Niclas | F18: SKV Mörfelden | G18: 179 | H18: 133 | I18: 13 | J18: 312 | K18: 133 | L18: 142 | M18: 34 | N18: 275 | O18: 312 | P18: 275 | Q18: 47 | R18: 587
A19: 8 | J19: =SUM(G19+H19) -> 0 | N19: =SUM(K19+L19) -> 0 | O19: =(J19) -> 0 | P19: =(N19) -> 0 | Q19: =SUM(I19+M19) -> 0 | R19: =SUM(O19+P19) -> 0
A20: 9 | J20: =SUM(G20+H20) -> 0 | N20: =SUM(K20+L20) -> 0 | O20: =(J20) -> 0 | P20: =(N20) -> 0 | Q20: =SUM(I20+M20) -> 0 | R20: =SUM(O20+P20) -> 0
A21: 10 | J21: 0 | N21: 0 | O21: 0 | P21: 0 | Q21: 0 | R21: 0
A22: 11 | J22: 0 | N22: 0 | O22: 0 | P22: 0 | Q22: 0 | R22: 0
A23: 12 | J23: 0 | N23: 0 | O23: 0 | P23: 0 | Q23: 0 | R23: 0
A24: 13 | J24: 0 | N24: 0 | O24: 0 | P24: 0 | Q24: 0 | R24: 0
A25: 14 | J25: 0 | N25: 0 | O25: 0 | P25: 0 | Q25: 0 | R25: 0
A26: 15 | J26: 0 | N26: 0 | O26: 0 | P26: 0 | Q26: 0 | R26: 0
A27: 16 | J27: 0 | N27: 0 | O27: 0 | P27: 0 | Q27: 0 | R27: 0
A28: 17 | J28: 0 | N28: 0 | O28: 0 | P28: 0 | Q28: 0 | R28: 0
A29: 18 | J29: 0 | N29: 0 | O29: 0 | P29: 0 | Q29: 0 | R29: 0
A30: 19 | J30: 0 | N30: 0 | O30: 0 | P30: 0 | Q30: 0 | R30: 0
A31: 20 | J31: 0 | N31: 0 | O31: 0 | P31: 0 | Q31: 0 | R31: 0

Sheet Bemerkungen (hidden)
A1: Bemerkungen zur BEM 2017
A2: Datum | B2: Bemerkung
A3: 2017-01-18 | B3: BEM U10: Es werden diesmal wieder 2 x 50 Wurf nur in die Vollen gespielt; Aufgrund von Schulprojekten ist ausschließlich bei der U10 auch eine Teilnahme auch ohne Mitgliedschaft beim Verein möglich; U10 Start ohne Kegelpass möglich; U14 und U18 benötigt Pässe
A4: 2017-01-30 | B4: Anmeldung SG Bockenheim
A5: 2017-02-06 | B5: Anmeldung TSV Ginnheim (Tabea Thies)
A6: 2017-02-07 | B6: Anmeldung TSV Ginnheim (Tabea Thies)
A7: 2017-02-07 | B7: Anmeldung FTV Frankfurt
A8: 2017-02-08 | B8: Anmeldung KV Riederwald
A9: 2017-02-09 | B9: Anmeldung TuS Rüsselsheim
A10: 2017-02-10 | B10: Anmeldung KBV Kelsterbach
A11: 2017-02-15 | B11: Anmeldung SKV Mörfelden
A12: 2017-02-15 | B12: Anmeldung KV Praunheim
A13: 2017-02-17 | B13: Anmeldung Blaulicht Mainspitze Bischofsheim
A14: 2017-02-17 | B14: TuS Rüsselsheim meldet Marek Weyrich ab wegen Verletzung
A15: 2017-02-17 | B15: Anmeldung VWSK Wiesbaden
A16: 2017-02-17 | B16: Anmeldung RW Walldorf

Sheet Anzahl Meldungen
A1: Bezirksmeisterschaft Einzel 2017
B3: U10 weiblich | C3: U10 männlich | D3: U14 weiblich | E3: U14 männlich | F3: U18 weiblich | G3: U18 männlich | H3: Gesamt
A5: SG Bockenheim | D5: 1 | E5: 1 | G5: 1 | H5: =SUM(B5:G5) -> 3
A6: KV Riederwald | F6: 4 | H6: =SUM(B6:G6) -> 4
A7: FTV 1860 Frankfurt | E7: 1 | G7: 1 | H7: 2
A8: KV Praunheim | C8: 1 | E8: 4 | H8: 5
A9: TSV Ginnheim | F9: 1 | G9: 2 | H9: 3
A10: Blaulicht Bischofsheim | G10: 1 | H10: 1
A11: KBV Kelsterbach | D11: 2 | E11: 2 | G11: 3 | H11: 7
A12: VWSK Wiesbaden | C12: 1 | D12: 2 | E12: 5 | F12: 1 | H12: 9
A13: RW Walldorf | F13: 1 | H13: 1
A14: TuS Rüsselsheim | G14: 3 | H14: 3
A15: SKV Mörfelden | B15: 1 | C15: 5 | D15: 1 | E15: 3 | F15: 2 | G15: 1 | H15: 13
A17: Gesamt | B17: =SUM(B5:B15) -> 1 | C17: 7 | D17: 6 | E17: 16 | F17: 9 | G17: 12 | H17: 51
A19: Alle Teilnehmer spielen auch den Endlauf!
A22: Startplätze HM 2017 | D22: 5 | E22: 6 | F22: 9 | G22: 6
